[Event "January 9 Early 2024"]
[Site "https://www.chess.com"]
[Date "2024.01.11"]
[Round "4"]
[White "Glashausser, Sho"]
[Black "Szczepanek, Radoslaw"]
[Result "0-1"]
[Board "138"]
[TimeControl "180+1"]
[WhiteFideId "30908329"]
[BlackFideId "1120395"]
[WhiteElo "2151"]
[BlackElo "2384"]
[WhiteTeam "USA"]
[BlackTeam "POL"]
[WhiteClock "0:00:01"]
[BlackClock "0:00:20"]

1. Nf3 {[%clk 0:03:00]}  c5 {[%clk 0:02:57]} 2. Nc3 {[%clk 0:03:00]}  d5 {[%clk 0:02:55]} 3. d4 {[%clk 0:02:58]}  cxd4 {[%clk 0:02:49]} 4. Qxd4 {[%clk 0:02:48]}  Nf6 {[%clk 0:02:48]} 5. e4 {[%clk 0:02:36]}  e6 {[%clk 0:02:28]} 6. exd5 {[%clk 0:02:14]}  exd5 {[%clk 0:02:21]} 7. Bb5+ {[%clk 0:01:47]}  Nc6 {[%clk 0:02:16]} 8. O-O {[%clk 0:01:29]}  Be7 {[%clk 0:02:12]} 9. Bg5 {[%clk 0:01:08]}  O-O {[%clk 0:02:12]} 10. Qd3 {[%clk 0:01:08]}  Be6 {[%clk 0:02:08]} 11. Rad1 {[%clk 0:01:06]}  Qb6 {[%clk 0:02:00]} 12. Be3 {[%clk 0:00:42]}  Qc7 {[%clk 0:01:49]} 13. Nd4 {[%clk 0:00:37]}  Ng4 {[%clk 0:01:42]} 14. g3 {[%clk 0:00:35]}  Nxe3 {[%clk 0:01:40]} 15. Qxe3 {[%clk 0:00:35]}  Nxd4 {[%clk 0:01:38]} 16. Qxd4 {[%clk 0:00:29]}  a6 {[%clk 0:01:29]} 17. Bd3 {[%clk 0:00:26]}  Rad8 {[%clk 0:01:23]} 18. Rfe1 {[%clk 0:00:25]}  Bf6 {[%clk 0:01:23]} 19. Qa4 {[%clk 0:00:11]}  Bxc3 {[%clk 0:01:19]} 20. bxc3 {[%clk 0:00:10]}  Qxc3 {[%clk 0:01:19]} 21. Qh4 {[%clk 0:00:07]}  h6 {[%clk 0:01:12]} 22. Re3 {[%clk 0:00:03]}  d4 {[%clk 0:00:53]} 23. Rxe6 {[%clk 0:00:02]}  fxe6 {[%clk 0:00:35]} 24. Qe4 {[%clk 0:00:02]}  Rf6 {[%clk 0:00:25]} 25. Qh7+ {[%clk 0:00:01]}  Kf8 {[%clk 0:00:26]} 26. Kg2 {[%clk 0:00:01]}  Qc6+ {[%clk 0:00:24]} 27. Kg1 {[%clk 0:00:01]}  Qf3 {[%clk 0:00:20]} 0-1

[Event "January 9 Early 2024"]
[Site "https://www.chess.com"]
[Date "2024.01.11"]
[Round "4"]
[White "Khouri, Ahmed Abbas"]
[Black "Dushyant Sharma"]
[Result "0-1"]
[Board "139"]
[TimeControl "180+1"]
[WhiteFideId "9301518"]
[BlackFideId "25065130"]
[WhiteElo "2249"]
[BlackElo "2514"]
[WhiteTeam "UAE"]
[BlackTeam "IND"]
[WhiteClock "0:00:02"]
[BlackClock "0:00:44"]

1. e4 {[%clk 0:02:59]}  d5 {[%clk 0:02:59]} 2. exd5 {[%clk 0:02:58]}  Nf6 {[%clk 0:03:00]} 3. d4 {[%clk 0:02:57]}  Bg4 {[%clk 0:03:00]} 4. Be2 {[%clk 0:02:55]}  Bxe2 {[%clk 0:03:00]} 5. Nxe2 {[%clk 0:02:56]}  Qxd5 {[%clk 0:03:00]} 6. O-O {[%clk 0:02:55]}  Nc6 {[%clk 0:02:58]} 7. c4 {[%clk 0:02:54]}  Qxc4 {[%clk 0:02:56]} 8. Nbc3 {[%clk 0:02:45]}  O-O-O {[%clk 0:02:57]} 9. Be3 {[%clk 0:02:35]}  e5 {[%clk 0:02:57]} 10. b3 {[%clk 0:02:17]}  Qe6 {[%clk 0:02:52]} 11. d5 {[%clk 0:02:06]}  Nxd5 {[%clk 0:02:49]} 12. Nxd5 {[%clk 0:02:06]}  Rxd5 {[%clk 0:02:43]} 13. Qc2 {[%clk 0:02:06]}  Ba3 {[%clk 0:02:36]} 14. Nc3 {[%clk 0:02:01]}  Rd7 {[%clk 0:02:31]} 15. Nb5 {[%clk 0:02:00]}  Be7 {[%clk 0:02:20]} 16. Bxa7 {[%clk 0:01:47]}  Qd5 {[%clk 0:01:57]} 17. a4 {[%clk 0:01:21]}  Qd3 {[%clk 0:01:54]} 18. Qb2 {[%clk 0:00:57]}  Bf6 {[%clk 0:01:32]} 19. Rac1 {[%clk 0:00:35]}  Nxa7 {[%clk 0:01:31]} 20. Nxa7+ {[%clk 0:00:35]}  Kb8 {[%clk 0:01:32]} 21. Nb5 {[%clk 0:00:32]}  e4 {[%clk 0:01:22]} 22. Qa3 {[%clk 0:00:31]}  c6 {[%clk 0:01:21]} 23. Qc5 {[%clk 0:00:11]}  cxb5 {[%clk 0:01:17]} 24. axb5 {[%clk 0:00:12]}  Qd6 {[%clk 0:01:11]} 25. Qf5 {[%clk 0:00:12]}  Qe6 {[%clk 0:01:09]} 26. Qc5 {[%clk 0:00:11]}  Bd4 {[%clk 0:01:05]} 27. Qb4 {[%clk 0:00:08]}  Qd6 {[%clk 0:01:02]} 28. Qa4 {[%clk 0:00:06]}  e3 {[%clk 0:00:54]} 29. Rfd1 {[%clk 0:00:03]}  e2 {[%clk 0:00:48]} 30. Re1 {[%clk 0:00:03]}  Re8 {[%clk 0:00:47]} 31. h3 {[%clk 0:00:02]}  Qf4 {[%clk 0:00:44]} 0-1

[Event "January 9 Early 2024"]
[Site "https://www.chess.com"]
[Date "2024.01.11"]
[Round "4"]
[White "Molina, Roberto Junio Brito"]
[Black "Estrada Nieto, Julian"]
[Result "1-0"]
[Board "140"]
[TimeControl "180+1"]
[WhiteFideId "2109450"]
[BlackFideId "5101018"]
[WhiteElo "2809"]
[BlackElo "2594"]
[WhiteTeam "BRA"]
[BlackTeam "ESP"]
[WhiteClock "0:00:37"]
[BlackClock "0:00:02"]

1. d4 {[%clk 0:03:00]}  d5 {[%clk 0:02:59]} 2. Nf3 {[%clk 0:03:00]}  Nf6 {[%clk 0:03:00]} 3. e3 {[%clk 0:03:00]}  e6 {[%clk 0:02:58]} 4. Bd3 {[%clk 0:03:00]}  c5 {[%clk 0:02:58]} 5. c3 {[%clk 0:02:59]}  Nc6 {[%clk 0:02:59]} 6. O-O {[%clk 0:02:59]}  Bd6 {[%clk 0:02:59]} 7. Nbd2 {[%clk 0:02:59]}  O-O {[%clk 0:02:59]} 8. dxc5 {[%clk 0:03:00]}  Bxc5 {[%clk 0:02:59]} 9. e4 {[%clk 0:03:01]}  Qc7 {[%clk 0:02:58]} 10. Qe2 {[%clk 0:02:58]}  dxe4 {[%clk 0:02:37]} 11. Nxe4 {[%clk 0:02:58]}  Be7 {[%clk 0:02:37]} 12. Bg5 {[%clk 0:02:53]}  Nd5 {[%clk 0:02:27]} 13. Bxe7 {[%clk 0:02:52]}  Ncxe7 {[%clk 0:02:23]} 14. g3 {[%clk 0:02:50]}  b6 {[%clk 0:02:21]} 15. Rfd1 {[%clk 0:02:46]}  Bb7 {[%clk 0:02:19]} 16. Rd2 {[%clk 0:02:45]}  Rfd8 {[%clk 0:02:15]} 17. Rad1 {[%clk 0:02:45]}  a6 {[%clk 0:02:06]} 18. c4 {[%clk 0:02:34]}  Nb4 {[%clk 0:02:05]} 19. Bb1 {[%clk 0:02:34]}  Rxd2 {[%clk 0:01:55]} 20. Rxd2 {[%clk 0:02:35]}  Rd8 {[%clk 0:01:51]} 21. a3 {[%clk 0:02:17]}  Nbc6 {[%clk 0:01:49]} 22. b4 {[%clk 0:02:15]}  Nf5 {[%clk 0:01:44]} 23. Qd1 {[%clk 0:02:05]}  Rxd2 {[%clk 0:01:42]} 24. Qxd2 {[%clk 0:02:02]}  h6 {[%clk 0:01:37]} 25. c5 {[%clk 0:01:44]}  Ne5 {[%clk 0:01:24]} 26. Nxe5 {[%clk 0:01:36]}  Qxe5 {[%clk 0:01:24]} 27. Nd6 {[%clk 0:01:29]}  Nd4 {[%clk 0:00:55]} 28. Qe3 {[%clk 0:01:28]}  Nf3+ {[%clk 0:00:32]} 29. Kg2 {[%clk 0:01:17]}  Ne1+ {[%clk 0:00:20]} 30. Kf1 {[%clk 0:01:14]}  Qd5 {[%clk 0:00:05]} 31. Kxe1 {[%clk 0:00:55]}  Bc6 {[%clk 0:00:03]} 32. Be4 {[%clk 0:00:48]}  Qe5 {[%clk 0:00:02]} 33. Bxc6 {[%clk 0:00:46]}  Qa1+ {[%clk 0:00:01]} 34. Ke2 {[%clk 0:00:46]}  Qb2+ {[%clk 0:00:02]} 35. Kf1 {[%clk 0:00:45]}  bxc5 {[%clk 0:00:02]} 36. bxc5 {[%clk 0:00:43]}  Qb1+ {[%clk 0:00:02]} 37. Kg2 {[%clk 0:00:43]}  Qb8 {[%clk 0:00:02]} 38. Bf3 {[%clk 0:00:41]}  Qc7 {[%clk 0:00:02]} 39. Qd4 {[%clk 0:00:37]} 1-0

[Event "January 9 Early 2024"]
[Site "https://www.chess.com"]
[Date "2024.01.11"]
[Round "4"]
[White "Boyer, Mahel"]
[Black "Jovic, Stanoje"]
[Result "1-0"]
[Board "141"]
[TimeControl "180+1"]
[WhiteFideId "45102422"]
[BlackFideId "905020"]
[WhiteElo "2644"]
[BlackElo "2414"]
[WhiteTeam "FRA"]
[BlackTeam "SRB"]
[WhiteClock "0:00:15"]
[BlackClock "0:00:09"]

1. e4 {[%clk 0:03:00]}  c6 {[%clk 0:02:59]} 2. c4 {[%clk 0:02:59]}  d5 {[%clk 0:02:59]} 3. cxd5 {[%clk 0:03:00]}  cxd5 {[%clk 0:02:59]} 4. exd5 {[%clk 0:03:01]}  Nf6 {[%clk 0:02:59]} 5. Nc3 {[%clk 0:02:48]}  Nxd5 {[%clk 0:02:58]} 6. Nf3 {[%clk 0:02:49]}  Nc6 {[%clk 0:02:57]} 7. Bb5 {[%clk 0:02:48]}  Nc7 {[%clk 0:02:56]} 8. Bc4 {[%clk 0:02:34]}  g6 {[%clk 0:02:55]} 9. d4 {[%clk 0:02:32]}  Bg7 {[%clk 0:02:52]} 10. d5 {[%clk 0:02:32]}  Ne5 {[%clk 0:02:39]} 11. Nxe5 {[%clk 0:02:32]}  Bxe5 {[%clk 0:02:39]} 12. Bh6 {[%clk 0:02:33]}  b5 {[%clk 0:02:31]} 13. Nxb5 {[%clk 0:02:31]}  Bd6 {[%clk 0:02:05]} 14. O-O {[%clk 0:02:27]}  Nxb5 {[%clk 0:02:01]} 15. Bxb5+ {[%clk 0:02:25]}  Bd7 {[%clk 0:02:01]} 16. Bc6 {[%clk 0:02:14]}  Rb8 {[%clk 0:01:54]} 17. Rc1 {[%clk 0:02:10]}  f6 {[%clk 0:01:41]} 18. Qa4 {[%clk 0:02:08]}  Bxc6 {[%clk 0:01:37]} 19. dxc6 {[%clk 0:02:07]}  Qc7 {[%clk 0:01:31]} 20. Rfe1 {[%clk 0:02:02]}  Bxh2+ {[%clk 0:01:27]} 21. Kh1 {[%clk 0:02:02]}  Be5 {[%clk 0:01:23]} 22. b4 {[%clk 0:01:17]}  g5 {[%clk 0:01:15]} 23. Rcd1 {[%clk 0:01:15]}  Kf7 {[%clk 0:01:07]} 24. Rd7 {[%clk 0:01:12]}  Qb6 {[%clk 0:01:04]} 25. Rxe5 {[%clk 0:01:04]}  fxe5 {[%clk 0:00:54]} 26. Qb3+ {[%clk 0:01:03]}  Kf6 {[%clk 0:00:48]} 27. Bg7+ {[%clk 0:00:58]}  Kxg7 {[%clk 0:00:37]} 28. Rxe7+ {[%clk 0:00:57]}  Kh6 {[%clk 0:00:31]} 29. Qh3+ {[%clk 0:00:28]}  Kg6 {[%clk 0:00:29]} 30. Qe6+ {[%clk 0:00:28]}  Kh5 {[%clk 0:00:23]} 31. Qf7+ {[%clk 0:00:18]}  Kh4 {[%clk 0:00:17]} 32. Qf3 {[%clk 0:00:15]}  Qd4 {[%clk 0:00:09]} 33. Qh3# {[%clk 0:00:15]} 1-0

[Event "January 9 Early 2024"]
[Site "https://www.chess.com"]
[Date "2024.01.11"]
[Round "4"]
[White "Alekseenko, Kirill"]
[Black "Tatarinov, Dmitry"]
[Result "1-0"]
[Board "142"]
[TimeControl "180+1"]
[WhiteFideId "4135539"]
[BlackFideId "24160067"]
[WhiteElo "2926"]
[BlackElo "2751"]
[WhiteTeam "AUT"]
[BlackTeam "RUS"]
[WhiteClock "0:00:25"]
[BlackClock "0:00:07"]

1. e4 {[%clk 0:03:00]}  e5 {[%clk 0:02:57]} 2. Nf3 {[%clk 0:03:01]}  Nc6 {[%clk 0:02:57]} 3. Bc4 {[%clk 0:03:01]}  Bc5 {[%clk 0:02:52]} 4. d3 {[%clk 0:03:02]}  Nf6 {[%clk 0:02:50]} 5. Nc3 {[%clk 0:03:02]}  h6 {[%clk 0:02:39]} 6. h3 {[%clk 0:02:59]}  d6 {[%clk 0:02:38]} 7. a4 {[%clk 0:03:00]}  a6 {[%clk 0:02:38]} 8. Be3 {[%clk 0:03:00]}  Bxe3 {[%clk 0:02:34]} 9. fxe3 {[%clk 0:03:01]}  O-O {[%clk 0:02:34]} 10. O-O {[%clk 0:03:00]}  Be6 {[%clk 0:02:34]} 11. Nd2 {[%clk 0:03:01]}  d5 {[%clk 0:02:31]} 12. exd5 {[%clk 0:03:00]}  Nxd5 {[%clk 0:02:31]} 13. e4 {[%clk 0:02:28]}  Ne3 {[%clk 0:02:22]} 14. Qe2 {[%clk 0:02:15]}  Nxf1 {[%clk 0:02:19]} 15. Rxf1 {[%clk 0:02:16]}  Bxc4 {[%clk 0:02:16]} 16. Nxc4 {[%clk 0:02:16]}  Qd4+ {[%clk 0:01:42]} 17. Kh1 {[%clk 0:02:14]}  Rad8 {[%clk 0:01:42]} 18. Ne3 {[%clk 0:02:11]}  Qd7 {[%clk 0:01:27]} 19. Qh5 {[%clk 0:01:58]}  f6 {[%clk 0:01:13]} 20. Rf3 {[%clk 0:01:49]}  Qf7 {[%clk 0:01:07]} 21. Qh4 {[%clk 0:01:49]}  Nd4 {[%clk 0:01:06]} 22. Rg3 {[%clk 0:01:37]}  Kh7 {[%clk 0:01:06]} 23. Nf5 {[%clk 0:01:35]}  Rg8 {[%clk 0:00:52]} 24. Kh2 {[%clk 0:01:13]}  Nxf5 {[%clk 0:00:36]} 25. exf5 {[%clk 0:01:14]}  Rd4 {[%clk 0:00:36]} 26. Ne4 {[%clk 0:01:14]}  a5 {[%clk 0:00:31]} 27. c3 {[%clk 0:01:03]}  Rdd8 {[%clk 0:00:28]} 28. Rg6 {[%clk 0:01:03]}  Rxd3 {[%clk 0:00:18]} 29. Qh5 {[%clk 0:00:37]}  Qf8 {[%clk 0:00:10]} 30. Qe2 {[%clk 0:00:28]}  Rd7 {[%clk 0:00:08]} 31. Qb5 {[%clk 0:00:24]}  b6 {[%clk 0:00:07]} 32. Qe2 {[%clk 0:00:25]} 1-0

[Event "January 9 Early 2024"]
[Site "https://www.chess.com"]
[Date "2024.01.11"]
[Round "4"]
[White "Tristan, Leonardo"]
[Black "Iljin, Timofey"]
[Result "1-0"]
[Board "145"]
[TimeControl "180+1"]
[WhiteFideId "113816"]
[BlackFideId "14110180"]
[WhiteElo "2736"]
[BlackElo "2538"]
[WhiteTeam "ARG"]
[BlackTeam "UKR"]
[WhiteClock "0:00:16"]
[BlackClock "0:00:03"]

1. d4 {[%clk 0:03:00]}  f5 {[%clk 0:02:59]} 2. Nf3 {[%clk 0:03:00]}  Nf6 {[%clk 0:03:00]} 3. g3 {[%clk 0:03:00]}  g6 {[%clk 0:03:00]} 4. Bg2 {[%clk 0:03:01]}  Bg7 {[%clk 0:03:01]} 5. O-O {[%clk 0:03:01]}  O-O {[%clk 0:03:02]} 6. Nbd2 {[%clk 0:03:01]}  d6 {[%clk 0:03:02]} 7. Re1 {[%clk 0:03:01]}  Qe8 {[%clk 0:03:02]} 8. e4 {[%clk 0:03:01]}  Nc6 {[%clk 0:02:44]} 9. c3 {[%clk 0:02:53]}  e5 {[%clk 0:02:38]} 10. exf5 {[%clk 0:02:44]}  gxf5 {[%clk 0:02:30]} 11. dxe5 {[%clk 0:02:26]}  dxe5 {[%clk 0:02:31]} 12. Nxe5 {[%clk 0:01:59]}  Nxe5 {[%clk 0:02:13]} 13. f4 {[%clk 0:01:59]}  Nfg4 {[%clk 0:01:39]} 14. fxe5 {[%clk 0:01:58]}  Be6 {[%clk 0:01:40]} 15. Nf3 {[%clk 0:01:52]}  Qb5 {[%clk 0:01:33]} 16. h3 {[%clk 0:01:36]}  Rad8 {[%clk 0:00:18]} 17. Nd4 {[%clk 0:01:36]}  Qb6 {[%clk 0:00:06]} 18. hxg4 {[%clk 0:01:33]}  c5 {[%clk 0:00:07]} 19. Nxe6 {[%clk 0:01:26]}  Rxd1 {[%clk 0:00:06]} 20. Rxd1 {[%clk 0:01:27]}  Re8 {[%clk 0:00:04]} 21. Nxg7 {[%clk 0:01:26]}  Kxg7 {[%clk 0:00:05]} 22. Rd7+ {[%clk 0:01:23]}  Kh8 {[%clk 0:00:03]} 23. Bf4 {[%clk 0:00:40]}  Qxb2 {[%clk 0:00:02]} 24. Rad1 {[%clk 0:00:40]}  Qxc3 {[%clk 0:00:02]} 25. Rxb7 {[%clk 0:00:35]}  fxg4 {[%clk 0:00:02]} 26. Rdd7 {[%clk 0:00:31]}  Qc2 {[%clk 0:00:02]} 27. e6 {[%clk 0:00:23]}  Qf5 {[%clk 0:00:02]} 28. Rf7 {[%clk 0:00:18]}  Qf6 {[%clk 0:00:01]} 29. Rxf6 {[%clk 0:00:17]}  c4 {[%clk 0:00:02]} 30. Rff7 {[%clk 0:00:17]}  Rb8 {[%clk 0:00:03]} 31. Rxb8# {[%clk 0:00:16]} 1-0

[Event "January 9 Early 2024"]
[Site "https://www.chess.com"]
[Date "2024.01.11"]
[Round "4"]
[White "Mendez Fortes, Eduardo Jesus"]
[Black "Dyulgerov, Volen"]
[Result "1-0"]
[Board "146"]
[TimeControl "180+1"]
[WhiteFideId "3502376"]
[BlackFideId "2918978"]
[WhiteElo "2547"]
[BlackElo "2384"]
[WhiteTeam "CUB"]
[BlackTeam "BUL"]
[WhiteClock "0:00:43"]
[BlackClock "0:00:01"]

1. e4 {[%clk 0:03:00]}  c5 {[%clk 0:03:00]} 2. Nf3 {[%clk 0:03:00]}  d6 {[%clk 0:02:59]} 3. d4 {[%clk 0:02:59]}  cxd4 {[%clk 0:03:00]} 4. Nxd4 {[%clk 0:03:00]}  Nf6 {[%clk 0:03:00]} 5. Nc3 {[%clk 0:03:00]}  a6 {[%clk 0:03:00]} 6. Bg5 {[%clk 0:02:59]}  e6 {[%clk 0:03:00]} 7. f4 {[%clk 0:02:59]}  Qc7 {[%clk 0:03:00]} 8. Qf3 {[%clk 0:02:52]}  b5 {[%clk 0:03:00]} 9. Bxf6 {[%clk 0:02:51]}  gxf6 {[%clk 0:03:00]} 10. a3 {[%clk 0:02:52]}  h5 {[%clk 0:02:57]} 11. f5 {[%clk 0:02:47]}  Be7 {[%clk 0:02:24]} 12. O-O-O {[%clk 0:02:40]}  Nc6 {[%clk 0:02:03]} 13. Nxc6 {[%clk 0:02:35]}  Qxc6 {[%clk 0:02:03]} 14. Be2 {[%clk 0:02:35]}  h4 {[%clk 0:01:54]} 15. Qh3 {[%clk 0:02:34]}  Qc5 {[%clk 0:01:33]} 16. Bg4 {[%clk 0:02:20]}  Qe5 {[%clk 0:01:29]} 17. fxe6 {[%clk 0:02:21]}  fxe6 {[%clk 0:01:27]} 18. Ne2 {[%clk 0:02:19]}  Rg8 {[%clk 0:01:17]} 19. Kb1 {[%clk 0:02:08]}  f5 {[%clk 0:00:34]} 20. Bh5+ {[%clk 0:02:05]}  Kd8 {[%clk 0:00:30]} 21. Nd4 {[%clk 0:02:02]}  Bd7 {[%clk 0:00:11]} 22. Bf7 {[%clk 0:01:47]}  Rg4 {[%clk 0:00:08]} 23. Bxe6 {[%clk 0:01:43]}  Rxe4 {[%clk 0:00:03]} 24. Bxd7 {[%clk 0:01:32]}  Rxd4 {[%clk 0:00:03]} 25. Rde1 {[%clk 0:01:26]}  Re4 {[%clk 0:00:02]} 26. Rxe4 {[%clk 0:01:23]}  fxe4 {[%clk 0:00:03]} 27. Bc6 {[%clk 0:01:19]}  Ra7 {[%clk 0:00:03]} 28. Re1 {[%clk 0:01:18]}  Bf6 {[%clk 0:00:04]} 29. c3 {[%clk 0:01:18]}  Re7 {[%clk 0:00:03]} 30. Rxe4 {[%clk 0:01:15]}  Qc5 {[%clk 0:00:02]} 31. Rxe7 {[%clk 0:01:13]}  Kxe7 {[%clk 0:00:03]} 32. Qd7+ {[%clk 0:01:11]}  Kf8 {[%clk 0:00:03]} 33. Be4 {[%clk 0:01:08]}  Qg1+ {[%clk 0:00:03]} 34. Ka2 {[%clk 0:01:08]}  Qxh2 {[%clk 0:00:02]} 35. Bg6 {[%clk 0:01:02]}  Be7 {[%clk 0:00:02]} 36. Qf5+ {[%clk 0:00:59]}  Kg7 {[%clk 0:00:01]} 37. Qf7+ {[%clk 0:00:59]}  Kh6 {[%clk 0:00:02]} 38. Bb1 {[%clk 0:00:46]}  Kg5 {[%clk 0:00:01]} 39. Qxe7+ {[%clk 0:00:46]}  Kg4 {[%clk 0:00:01]} 40. Qg7+ {[%clk 0:00:43]} 1-0

[Event "January 9 Early 2024"]
[Site "https://www.chess.com"]
[Date "2024.01.11"]
[Round "4"]
[White "Travkina, Anastasia"]
[Black "Saim, Mohamed Ilias"]
[Result "1-0"]
[Board "147"]
[TimeControl "180+1"]
[WhiteFideId "24129151"]
[BlackFideId "7900465"]
[WhiteElo "2444"]
[BlackElo "2106"]
[WhiteTeam "RUS"]
[BlackTeam "ALG"]
[WhiteClock "0:00:26"]
[BlackClock "0:00:04"]

1. e4 {[%clk 0:03:00]}  c5 {[%clk 0:02:59]} 2. Nf3 {[%clk 0:03:00]}  Nc6 {[%clk 0:03:00]} 3. d4 {[%clk 0:03:00]}  cxd4 {[%clk 0:03:01]} 4. Nxd4 {[%clk 0:03:00]}  Nf6 {[%clk 0:03:01]} 5. Nc3 {[%clk 0:03:00]}  e5 {[%clk 0:03:02]} 6. Ndb5 {[%clk 0:03:01]}  d6 {[%clk 0:03:02]} 7. Nd5 {[%clk 0:03:01]}  Nxd5 {[%clk 0:03:02]} 8. exd5 {[%clk 0:03:02]}  Ne7 {[%clk 0:03:02]} 9. a4 {[%clk 0:03:02]}  Ng6 {[%clk 0:03:02]} 10. Be2 {[%clk 0:03:02]}  a6 {[%clk 0:02:59]} 11. Na3 {[%clk 0:03:01]}  Be7 {[%clk 0:02:58]} 12. O-O {[%clk 0:03:00]}  f5 {[%clk 0:02:54]} 13. f4 {[%clk 0:02:59]}  e4 {[%clk 0:02:48]} 14. Be3 {[%clk 0:02:58]}  O-O {[%clk 0:02:48]} 15. Nc4 {[%clk 0:02:56]}  Bd7 {[%clk 0:02:33]} 16. a5 {[%clk 0:02:40]}  Bb5 {[%clk 0:02:30]} 17. Nb6 {[%clk 0:02:41]}  Bxe2 {[%clk 0:02:27]} 18. Qxe2 {[%clk 0:02:41]}  Rb8 {[%clk 0:02:15]} 19. c4 {[%clk 0:02:42]}  Bf6 {[%clk 0:02:13]} 20. Rac1 {[%clk 0:02:41]}  Ne7 {[%clk 0:02:05]} 21. b4 {[%clk 0:02:40]}  Nc8 {[%clk 0:02:04]} 22. Rfd1 {[%clk 0:02:35]}  Nxb6 {[%clk 0:02:01]} 23. Bxb6 {[%clk 0:02:31]}  Qd7 {[%clk 0:01:57]} 24. c5 {[%clk 0:02:31]}  Rbc8 {[%clk 0:01:48]} 25. Qc4 {[%clk 0:02:25]}  Qa4 {[%clk 0:00:50]} 26. c6 {[%clk 0:02:19]}  Kh8 {[%clk 0:00:41]} 27. Rd2 {[%clk 0:00:40]}  Qa3 {[%clk 0:00:18]} 28. Rdc2 {[%clk 0:00:38]}  Bb2 {[%clk 0:00:16]} 29. Rb1 {[%clk 0:00:35]}  Bf6 {[%clk 0:00:13]} 30. Ra2 {[%clk 0:00:32]}  Qd3 {[%clk 0:00:07]} 31. Qxd3 {[%clk 0:00:32]}  exd3 {[%clk 0:00:08]} 32. cxb7 {[%clk 0:00:29]}  Rc2 {[%clk 0:00:08]} 33. Rxc2 {[%clk 0:00:26]}  dxc2 {[%clk 0:00:08]} 34. Rc1 {[%clk 0:00:27]}  Rb8 {[%clk 0:00:09]} 35. Rxc2 {[%clk 0:00:26]}  g5 {[%clk 0:00:04]} 36. Rc8+ {[%clk 0:00:26]} 1-0

[Event "January 9 Early 2024"]
[Site "https://www.chess.com"]
[Date "2024.01.11"]
[Round "4"]
[White "Nepomniachtchi, Ian"]
[Black "Popov, Konstantin"]
[Result "1-0"]
[Board "148"]
[TimeControl "180+1"]
[WhiteFideId "4168119"]
[BlackFideId "34137910"]
[WhiteElo "3131"]
[BlackElo "2907"]
[WhiteTeam "RUS"]
[BlackTeam "FID"]
[WhiteClock "0:00:55"]
[BlackClock "0:00:05"]

1. e4 {[%clk 0:03:00]}  c5 {[%clk 0:02:59]} 2. Nf3 {[%clk 0:03:00]}  d6 {[%clk 0:03:00]} 3. d4 {[%clk 0:02:59]}  Nf6 {[%clk 0:03:01]} 4. Nc3 {[%clk 0:02:59]}  cxd4 {[%clk 0:03:01]} 5. Nxd4 {[%clk 0:03:00]}  a6 {[%clk 0:03:01]} 6. Be2 {[%clk 0:03:01]}  e5 {[%clk 0:03:01]} 7. Nf3 {[%clk 0:03:01]}  Be7 {[%clk 0:03:01]} 8. Bg5 {[%clk 0:03:02]}  Be6 {[%clk 0:02:59]} 9. Bxf6 {[%clk 0:03:02]}  Bxf6 {[%clk 0:03:00]} 10. Qd2 {[%clk 0:03:02]}  Be7 {[%clk 0:03:00]} 11. h4 {[%clk 0:03:02]}  h6 {[%clk 0:02:55]} 12. O-O-O {[%clk 0:03:00]}  Nd7 {[%clk 0:02:55]} 13. Nd5 {[%clk 0:02:59]}  Nb6 {[%clk 0:02:48]} 14. Nxe7 {[%clk 0:02:54]}  Kxe7 {[%clk 0:02:43]} 15. Nxe5 {[%clk 0:02:54]}  Qc7 {[%clk 0:02:42]} 16. Nf3 {[%clk 0:02:44]}  Rhc8 {[%clk 0:02:41]} 17. Kb1 {[%clk 0:02:41]}  Na4 {[%clk 0:02:39]} 18. Nd4 {[%clk 0:02:36]}  Qb6 {[%clk 0:02:32]} 19. Nb3 {[%clk 0:02:35]}  Qxf2 {[%clk 0:01:58]} 20. Qxd6+ {[%clk 0:02:33]}  Ke8 {[%clk 0:01:57]} 21. Bd3 {[%clk 0:02:22]}  Qb6 {[%clk 0:01:23]} 22. Qe5 {[%clk 0:02:15]}  Kf8 {[%clk 0:01:21]} 23. g4 {[%clk 0:02:15]}  Qc7 {[%clk 0:01:10]} 24. Qd4 {[%clk 0:02:12]}  Nc5 {[%clk 0:01:08]} 25. g5 {[%clk 0:02:08]}  h5 {[%clk 0:01:01]} 26. Nxc5 {[%clk 0:01:27]}  Qxc5 {[%clk 0:01:02]} 27. Qxc5+ {[%clk 0:01:28]}  Rxc5 {[%clk 0:01:00]} 28. b3 {[%clk 0:01:29]}  b5 {[%clk 0:00:59]} 29. Kb2 {[%clk 0:01:28]}  Ke7 {[%clk 0:00:57]} 30. Ra1 {[%clk 0:01:25]}  a5 {[%clk 0:00:52]} 31. a3 {[%clk 0:01:24]}  a4 {[%clk 0:00:36]} 32. b4 {[%clk 0:01:24]}  Re5 {[%clk 0:00:36]} 33. Kc3 {[%clk 0:01:22]}  Rc8+ {[%clk 0:00:35]} 34. Kd4 {[%clk 0:01:22]}  Kd6 {[%clk 0:00:35]} 35. Rac1 {[%clk 0:01:18]}  Bc4 {[%clk 0:00:34]} 36. Rhf1 {[%clk 0:01:19]}  Re7 {[%clk 0:00:29]} 37. Rf5 {[%clk 0:01:18]}  Rec7 {[%clk 0:00:29]} 38. Rcf1 {[%clk 0:01:16]}  Ke6 {[%clk 0:00:17]} 39. Re5+ {[%clk 0:01:13]}  Kd6 {[%clk 0:00:17]} 40. Rff5 {[%clk 0:01:14]}  Be6 {[%clk 0:00:17]} 41. Rxb5 {[%clk 0:01:03]}  Bxf5 {[%clk 0:00:17]} 42. exf5 {[%clk 0:01:04]}  Rc3 {[%clk 0:00:18]} 43. Rb7 {[%clk 0:00:58]}  Rxa3 {[%clk 0:00:18]} 44. Bb5 {[%clk 0:00:58]}  Rc6 {[%clk 0:00:05]} 45. c4 {[%clk 0:00:55]} 1-0